[Event "*** Biggest EVER Titled Tuesday"]
[Site "Chess.com"]
[Date "2018.04.17"]
[Round "9"]
[White "Dr-Bassem"]
[Black "Diwi89"]
[Result "1/2-1/2"]
[WhiteElo "2720"]
[BlackElo "2726"]
[TimeControl "180+2"]
[EndTime "15:07:54 PDT"]
[Termination "Game drawn by agreement"]

1. Nf3 {[%clk 0:03:01.9]} 1... g6 {[%clk 0:02:59.7]} 2. g3 {[%clk 0:03:01.4]}
2... Bg7 {[%clk 0:02:59.3]} 3. Bg2 {[%clk 0:03:02.6]} 3... e5 {[%clk 0:03:00.4]}
4. O-O {[%clk 0:03:02.2]} 4... d5 {[%clk 0:02:58.2]} 5. c4 {[%clk 0:02:53.4]}
5... d4 {[%clk 0:02:54.2]} 6. d3 {[%clk 0:02:52.6]} 6... Ne7 {[%clk 0:02:52.5]}
7. b4 {[%clk 0:02:53.5]} 7... O-O {[%clk 0:02:53.1]} 8. Nbd2 {[%clk 0:02:51.3]}
8... a5 {[%clk 0:02:54.1]} 9. b5 {[%clk 0:02:50]} 9... c5 {[%clk 0:02:55.6]} 10.
bxc6 {[%clk 0:02:48.9]} 10... Nexc6 {[%clk 0:02:56.5]} 11. Rb1 {[%clk
0:02:44.8]} 11... Na6 {[%clk 0:02:55]} 12. Qa4 {[%clk 0:02:04.4]} 12... Bd7
{[%clk 0:02:49.5]} 13. Qa3 {[%clk 0:01:42.8]} 13... Ncb4 {[%clk 0:02:49.9]} 14.
Qb2 {[%clk 0:01:38.4]} 14... Nc5 {[%clk 0:02:46.8]} 15. a3 {[%clk 0:01:35.4]}
15... Nba6 {[%clk 0:02:38.6]} 16. Ne1 {[%clk 0:01:23.5]} 16... Bc6 {[%clk
0:02:37.8]} 17. Qc2 {[%clk 0:01:15.1]} 17... Qd7 {[%clk 0:02:34.3]} 18. Bxc6
{[%clk 0:01:03.9]} 18... bxc6 {[%clk 0:02:27.3]} 19. Nb3 {[%clk 0:01:04.5]}
19... a4 {[%clk 0:02:25.4]} 20. Nxc5 {[%clk 0:01:03.6]} 20... Nxc5 {[%clk
0:02:27.3]} 21. Nf3 {[%clk 0:01:00.8]} 21... Rfd8 {[%clk 0:02:20]} 22. Rb2
{[%clk 0:00:30.3]} 22... h6 {[%clk 0:02:19.5]} 23. Bd2 {[%clk 0:00:30.5]} 23...
f5 {[%clk 0:02:15.4]} 24. Rfb1 {[%clk 0:00:28.9]} 24... e4 {[%clk 0:02:13]} 25.
Nh4 {[%clk 0:00:30]} 25... g5 {[%clk 0:02:10.2]} 26. Ng2 {[%clk 0:00:27]} 26...
Re8 {[%clk 0:02:02.9]} 27. Rb6 {[%clk 0:00:23.6]} 27... exd3 {[%clk 0:01:58.5]}
28. exd3 {[%clk 0:00:24.5]} 28... Re2 {[%clk 0:01:59.9]} 29. Qd1 {[%clk
0:00:25.2]} 29... Rae8 {[%clk 0:01:59.7]} 30. h4 {[%clk 0:00:20]} 30... Nxd3
{[%clk 0:01:55.7]} 31. Rb7 {[%clk 0:00:18]} 31... Qe6 {[%clk 0:01:55.8]} 32.
hxg5 {[%clk 0:00:10.3]} 32... Nxf2 {[%clk 0:01:54.7]} 33. Nf4 {[%clk 0:00:11.7]}
33... Nxd1 {[%clk 0:01:26.7]} 34. Nxe6 {[%clk 0:00:12.3]} 34... R2xe6 {[%clk
0:00:57.5]} 35. gxh6 {[%clk 0:00:02.4]} 35... Bxh6 {[%clk 0:00:51.4]} 36. Rxd1
{[%clk 0:00:03.9]} 36... Be3+ {[%clk 0:00:46.6]} 37. Kg2 {[%clk 0:00:03.5]}
37... Rg6 {[%clk 0:00:46.9]} 38. Bxe3 {[%clk 0:00:03.8]} 38... dxe3 {[%clk
0:00:46.3]} 39. Kf3 {[%clk 0:00:05.2]} 39... e2 {[%clk 0:00:46.3]} 40. Re1
{[%clk 0:00:06.4]} 40... Rge6 {[%clk 0:00:46.4]} 41. Kf2 {[%clk 0:00:07.9]}
41... Re3 {[%clk 0:00:47]} 42. Rc7 {[%clk 0:00:08.7]} 42... R3e6 {[%clk
0:00:43.6]} 43. c5 {[%clk 0:00:09.1]} 43... Re3 {[%clk 0:00:27.8]} 44. Rxc6
{[%clk 0:00:10]} 44... Rxa3 {[%clk 0:00:29]} 45. Rf6 {[%clk 0:00:10.1]} 45...
Re5 {[%clk 0:00:25]} 46. c6 {[%clk 0:00:08.5]} 46... Rc3 {[%clk 0:00:26]} 47.
Rxe2 {[%clk 0:00:09]} 47... Rxe2+ {[%clk 0:00:25.9]} 48. Kxe2 {[%clk 0:00:10.9]}
48... a3 {[%clk 0:00:27.4]} 49. Rxf5 {[%clk 0:00:10.8]} 49... Rxc6 {[%clk
0:00:27.7]} 50. Ra5 {[%clk 0:00:11.3]} 50... Rc3 {[%clk 0:00:29.1]} 51. Kf2
{[%clk 0:00:12.1]} 1/2-1/2

[Event "*** Biggest EVER Titled Tuesday"]
[Site "Chess.com"]
[Date "2018.04.17"]
[Round "9"]
[White "biostatistician"]
[Black "Martins-BR"]
[Result "1/2-1/2"]
[WhiteElo "2435"]
[BlackElo "2229"]
[TimeControl "180+2"]
[EndTime "15:07:54 PDT"]
[Termination "Game drawn by repetition"]

1. d4 {[%clk 0:03:01.9]} 1... f5 {[%clk 0:02:59.8]} 2. Bg5 {[%clk 0:03:01.2]}
2... h6 {[%clk 0:03:00.4]} 3. Bh4 {[%clk 0:03:01.5]} 3... c5 {[%clk 0:03:01.2]}
4. e4 {[%clk 0:02:59.7]} 4... Qb6 {[%clk 0:03:01.7]} 5. Nc3 {[%clk 0:02:54]}
5... cxd4 {[%clk 0:02:55.4]} 6. Nd5 {[%clk 0:02:47.3]} 6... Qd6 {[%clk
0:02:51.4]} 7. Bg3 {[%clk 0:02:38.2]} 7... e5 {[%clk 0:02:50.1]} 8. Bc4 {[%clk
0:02:16.7]} 8... Nf6 {[%clk 0:02:45.7]} 9. Nxf6+ {[%clk 0:02:10.1]} 9... gxf6
{[%clk 0:02:45.8]} 10. Qh5+ {[%clk 0:02:07.9]} 10... Kd8 {[%clk 0:02:46.2]} 11.
Qxf5 {[%clk 0:02:08.3]} 11... Be7 {[%clk 0:02:31.8]} 12. Nf3 {[%clk 0:02:02.6]}
12... Qb4+ {[%clk 0:02:29.6]} 13. Nd2 {[%clk 0:02:03.3]} 13... Qxb2 {[%clk
0:02:30]} 14. Rb1 {[%clk 0:02:02.3]} 14... Qxc2 {[%clk 0:02:24.9]} 15. Bb3
{[%clk 0:01:53.2]} 15... Qc3 {[%clk 0:02:22]} 16. Qg6 {[%clk 0:01:28.5]} 16...
Nc6 {[%clk 0:02:15.2]} 17. Bh4 {[%clk 0:01:19.3]} 17... Rf8 {[%clk 0:02:12.7]}
18. Qxh6 {[%clk 0:01:18.8]} 18... Nb4 {[%clk 0:02:04.2]} 19. O-O {[%clk
0:01:18.8]} 19... Qc7 {[%clk 0:01:41.2]} 20. Rbc1 {[%clk 0:01:10.5]} 20... Nc6
{[%clk 0:01:41.2]} 21. f4 {[%clk 0:01:06.9]} 21... d6 {[%clk 0:01:04.8]} 22.
fxe5 {[%clk 0:01:01.4]} 22... dxe5 {[%clk 0:01:05.1]} 23. Bxf6 {[%clk
0:01:01.3]} 23... Rxf6 {[%clk 0:01:02.1]} 24. Rxf6 {[%clk 0:01:01.3]} 24... Bxf6
{[%clk 0:01:03.2]} 25. Qxf6+ {[%clk 0:01:03.2]} 25... Qe7 {[%clk 0:01:04.4]} 26.
Qh8+ {[%clk 0:01:00.4]} 26... Qe8 {[%clk 0:01:01.4]} 27. Qg7 {[%clk 0:00:44.9]}
27... Qe7 {[%clk 0:01:01.5]} 28. Qg8+ {[%clk 0:00:45.1]} 28... Qe8 {[%clk
0:01:01.7]} 29. Qd5+ {[%clk 0:00:45.3]} 29... Bd7 {[%clk 0:00:53.9]} 30. Nc4
{[%clk 0:00:43.1]} 30... Qe6 {[%clk 0:00:31.2]} 31. Qc5 {[%clk 0:00:38.9]} 31...
Qh6 {[%clk 0:00:20.3]} 32. Nxe5 {[%clk 0:00:32.2]} 32... Nxe5 {[%clk 0:00:16.7]}
33. Qc7+ {[%clk 0:00:33.2]} 33... Ke7 {[%clk 0:00:16.7]} 34. Qxe5+ {[%clk
0:00:35.1]} 34... Kd8 {[%clk 0:00:17]} 35. Qc7+ {[%clk 0:00:34.5]} 35... Ke7
{[%clk 0:00:17.7]} 36. Rf1 {[%clk 0:00:33.1]} 36... Rf8 {[%clk 0:00:15.5]} 37.
Qc5+ {[%clk 0:00:31.4]} 37... Ke8 {[%clk 0:00:16.7]} 38. Rxf8+ {[%clk 0:00:28]}
38... Qxf8 {[%clk 0:00:18.2]} 39. Qxd4 {[%clk 0:00:29.5]} 39... Qf4 {[%clk
0:00:15.2]} 40. Qh8+ {[%clk 0:00:27.9]} 40... Ke7 {[%clk 0:00:16]} 41. Qg7+
{[%clk 0:00:29.2]} 41... Kd8 {[%clk 0:00:15.5]} 42. Qg8+ {[%clk 0:00:25.4]}
42... Kc7 {[%clk 0:00:14.9]} 43. Qc4+ {[%clk 0:00:26.8]} 43... Kd8 {[%clk
0:00:15.6]} 44. Qe2 {[%clk 0:00:20.8]} 44... Bc6 {[%clk 0:00:15.9]} 45. Bd5
{[%clk 0:00:20.5]} 45... Qc1+ {[%clk 0:00:13.8]} 46. Kf2 {[%clk 0:00:21.1]}
46... Bxd5 {[%clk 0:00:12.8]} 47. exd5 {[%clk 0:00:23]} 47... Qc5+ {[%clk
0:00:13.9]} 48. Qe3 {[%clk 0:00:24.1]} 48... Qxd5 {[%clk 0:00:15]} 49. Qxa7
{[%clk 0:00:25.2]} 49... Qd2+ {[%clk 0:00:13.7]} 50. Kf3 {[%clk 0:00:26.1]}
50... Qd5+ {[%clk 0:00:14.8]} 51. Kg3 {[%clk 0:00:26.4]} 51... Qg5+ {[%clk
0:00:15.4]} 52. Kf3 {[%clk 0:00:27.1]} 52... Qd5+ {[%clk 0:00:16.2]} 53. Kf2
{[%clk 0:00:26.4]} 53... Qd2+ {[%clk 0:00:17.1]} 54. Kf1 {[%clk 0:00:27.5]}
54... Qd1+ {[%clk 0:00:17.5]} 55. Kf2 {[%clk 0:00:28.9]} 55... Qd2+ {[%clk
0:00:18.2]} 1/2-1/2

[Event "*** Biggest EVER Titled Tuesday"]
[Site "Chess.com"]
[Date "2018.04.17"]
[Round "9"]
[White "TigranLPetrosyan"]
[Black "LawrenceTrent"]
[Result "0-1"]
[WhiteElo "2640"]
[BlackElo "2541"]
[TimeControl "180+2"]
[EndTime "15:07:59 PDT"]
[Termination "LawrenceTrent won by resignation"]

1. d4 {[%clk 0:03:01]} 1... d5 {[%clk 0:03:00]} 2. Nf3 {[%clk 0:03:02.9]} 2...
Nf6 {[%clk 0:03:00.1]} 3. Bf4 {[%clk 0:03:04.3]} 3... c5 {[%clk 0:02:58.6]} 4.
e3 {[%clk 0:03:06.2]} 4... Nc6 {[%clk 0:02:59.4]} 5. c3 {[%clk 0:03:01.5]} 5...
e6 {[%clk 0:03:00.1]} 6. Bd3 {[%clk 0:03:01.6]} 6... Bd6 {[%clk 0:02:59.5]} 7.
O-O {[%clk 0:03:02.7]} 7... O-O {[%clk 0:02:58.9]} 8. a3 {[%clk 0:02:54]} 8...
Qc7 {[%clk 0:02:59.4]} 9. Bg5 {[%clk 0:02:54.1]} 9... Ne4 {[%clk 0:02:51.9]} 10.
Bh4 {[%clk 0:02:55]} 10... f5 {[%clk 0:02:46.6]} 11. Nbd2 {[%clk 0:02:46.3]}
11... c4 {[%clk 0:02:45.3]} 12. Bc2 {[%clk 0:02:46.8]} 12... b5 {[%clk
0:02:42.7]} 13. Kh1 {[%clk 0:02:42.5]} 13... Bd7 {[%clk 0:02:42.6]} 14. Nxe4
{[%clk 0:02:34.4]} 14... fxe4 {[%clk 0:02:43.4]} 15. Nd2 {[%clk 0:02:34.6]}
15... Rf5 {[%clk 0:02:27.3]} 16. f4 {[%clk 0:02:33.5]} 16... Raf8 {[%clk
0:02:12.9]} 17. g4 {[%clk 0:02:14.7]} 17... R5f7 {[%clk 0:02:13.5]} 18. Qe2
{[%clk 0:02:15.6]} 18... h6 {[%clk 0:02:11.6]} 19. g5 {[%clk 0:02:02.7]} 19...
hxg5 {[%clk 0:02:08.3]} 20. fxg5 {[%clk 0:01:49.5]} 20... Ne7 {[%clk 0:01:50]}
21. Rxf7 {[%clk 0:01:25.8]} 21... Rxf7 {[%clk 0:01:50.8]} 22. Rf1 {[%clk
0:01:26.2]} 22... Be8 {[%clk 0:01:44.7]} 23. Rxf7 {[%clk 0:01:24.9]} 23... Bxf7
{[%clk 0:01:45.7]} 24. Nf1 {[%clk 0:01:26.3]} 24... Nf5 {[%clk 0:01:45.6]} 25.
Bf2 {[%clk 0:01:26.4]} 25... a5 {[%clk 0:01:40.3]} 26. Qg4 {[%clk 0:01:26.7]}
26... g6 {[%clk 0:01:36.1]} 27. h4 {[%clk 0:01:01.3]} 27... b4 {[%clk
0:01:35.3]} 28. axb4 {[%clk 0:01:03.2]} 28... axb4 {[%clk 0:01:37.2]} 29. Qd1
{[%clk 0:00:54.7]} 29... b3 {[%clk 0:01:34.3]} 30. Bb1 {[%clk 0:00:55.1]} 30...
Qa7 {[%clk 0:01:24.1]} 31. Kg2 {[%clk 0:00:51.3]} 31... Qb8 {[%clk 0:01:11.7]}
32. Qg4 {[%clk 0:00:44.5]} 32... Kg7 {[%clk 0:01:11.7]} 33. Qd1 {[%clk
0:00:44.9]} 33... Qc7 {[%clk 0:01:02.5]} 34. Qg4 {[%clk 0:00:45.6]} 34... Qb8
{[%clk 0:01:03.4]} 35. Qd1 {[%clk 0:00:46.6]} 35... Qa8 {[%clk 0:01:03.7]} 36.
Qc1 {[%clk 0:00:46.1]} 36... Kg8 {[%clk 0:01:03.3]} 37. Qd1 {[%clk 0:00:46.9]}
37... Ng7 {[%clk 0:01:01.7]} 38. Nh2 {[%clk 0:00:46.2]} 38... Bxh2 {[%clk
0:00:54.7]} 39. Kxh2 {[%clk 0:00:48.1]} 39... Nf5 {[%clk 0:00:54.5]} 40. Kg2
{[%clk 0:00:44.7]} 40... Kg7 {[%clk 0:00:55.3]} 41. Qe1 {[%clk 0:00:39.4]} 41...
Qh8 {[%clk 0:00:53.9]} 42. Qe2 {[%clk 0:00:36.7]} 42... Kg8 {[%clk 0:00:53.1]}
43. Qg4 {[%clk 0:00:36.7]} 43... Ng7 {[%clk 0:00:52]} 44. Bg3 {[%clk 0:00:35.1]}
44... Qh5 {[%clk 0:00:52.1]} 45. Qxh5 {[%clk 0:00:34.6]} 45... gxh5 {[%clk
0:00:45.9]} 46. Be5 {[%clk 0:00:35.3]} 46... Nf5 {[%clk 0:00:45.8]} 47. Kf2
{[%clk 0:00:34.4]} 47... Nxh4 {[%clk 0:00:45.7]} 48. Bg3 {[%clk 0:00:30.4]}
48... Nf5 {[%clk 0:00:46.3]} 49. Bf4 {[%clk 0:00:31.8]} 49... Kh7 {[%clk
0:00:47.1]} 50. Kg2 {[%clk 0:00:32.4]} 50... Kg6 {[%clk 0:00:48.4]} 51. Kh3
{[%clk 0:00:33.8]} 51... Be8 {[%clk 0:00:49.7]} 52. Kg2 {[%clk 0:00:32.7]} 52...
Bd7 {[%clk 0:00:50.6]} 53. Kh2 {[%clk 0:00:32]} 53... Ng7 {[%clk 0:00:46.5]} 54.
Kg3 {[%clk 0:00:32.5]} 54... Nf5+ {[%clk 0:00:45.2]} 55. Kh2 {[%clk 0:00:33.4]}
55... h4 {[%clk 0:00:45.9]} 56. Kg2 {[%clk 0:00:30.8]} 56... Kh5 {[%clk
0:00:46.8]} 57. Kf2 {[%clk 0:00:32.2]} 57... Be8 {[%clk 0:00:45.8]} 58. Bd3
{[%clk 0:00:23.6]} 58... exd3 {[%clk 0:00:45.7]} 0-1

[Event "*** Biggest EVER Titled Tuesday"]
[Site "Chess.com"]
[Date "2018.04.17"]
[Round "9"]
[White "underdogchss"]
[Black "sergeikim"]
[Result "0-1"]
[WhiteElo "2369"]
[BlackElo "2448"]
[TimeControl "180+2"]
[EndTime "15:08:20 PDT"]
[Termination "sergeikim won by resignation"]

1. d4 {[%clk 0:03:01.9]} 1... Nf6 {[%clk 0:02:59.9]} 2. Nf3 {[%clk 0:03:01.1]}
2... g6 {[%clk 0:03:00.9]} 3. c4 {[%clk 0:03:01.6]} 3... Bg7 {[%clk 0:03:01.9]}
4. e3 {[%clk 0:03:03.5]} 4... O-O {[%clk 0:03:02.5]} 5. Nc3 {[%clk 0:03:05.1]}
5... d6 {[%clk 0:03:03.1]} 6. Be2 {[%clk 0:03:05.4]} 6... Nbd7 {[%clk 0:03:04]}
7. d5 {[%clk 0:03:04.6]} 7... e5 {[%clk 0:03:00.4]} 8. dxe6 {[%clk 0:03:05.2]}
8... fxe6 {[%clk 0:03:01.4]} 9. O-O {[%clk 0:03:07.1]} 9... e5 {[%clk
0:03:00.8]} 10. b3 {[%clk 0:02:58.4]} 10... Nc5 {[%clk 0:03:00.3]} 11. Bb2
{[%clk 0:02:59.2]} 11... a5 {[%clk 0:02:57.7]} 12. Rc1 {[%clk 0:02:22]} 12...
Bd7 {[%clk 0:02:56.4]} 13. Nd5 {[%clk 0:02:22]} 13... Bc6 {[%clk 0:02:50.5]} 14.
Ba3 {[%clk 0:02:15]} 14... b6 {[%clk 0:02:49.1]} 15. Ng5 {[%clk 0:01:35.8]}
15... Nxd5 {[%clk 0:02:37.5]} 16. cxd5 {[%clk 0:01:36.4]} 16... Bd7 {[%clk
0:02:26.5]} 17. Ne6 {[%clk 0:01:09.3]} 17... Nxe6 {[%clk 0:02:21.2]} 18. dxe6
{[%clk 0:01:11.2]} 18... Bxe6 {[%clk 0:02:22.2]} 19. Bf3 {[%clk 0:01:09.9]}
19... Rc8 {[%clk 0:02:12.9]} 20. Bb7 {[%clk 0:01:10.3]} 20... Rb8 {[%clk
0:02:13.2]} 21. Bc6 {[%clk 0:01:08.1]} 21... Kh8 {[%clk 0:02:06.2]} 22. Qc2
{[%clk 0:01:08]} 22... Qg5 {[%clk 0:02:01.1]} 23. Rfd1 {[%clk 0:00:55.5]} 23...
Rf7 {[%clk 0:01:58]} 24. Bd5 {[%clk 0:00:51.8]} 24... Bxd5 {[%clk 0:01:39.9]}
25. Rxd5 {[%clk 0:00:53.7]} 25... Rbf8 {[%clk 0:01:40.7]} 26. Rd2 {[%clk
0:00:42.9]} 26... Qh4 {[%clk 0:01:36.8]} 27. Rf1 {[%clk 0:00:30.5]} 27... Qg4
{[%clk 0:01:30.4]} 28. Qc6 {[%clk 0:00:25.4]} 28... h5 {[%clk 0:01:24.9]} 29. f3
{[%clk 0:00:22.8]} 29... Qg5 {[%clk 0:01:24.5]} 30. Qe4 {[%clk 0:00:20.8]} 30...
Kh7 {[%clk 0:01:19.9]} 31. Rd3 {[%clk 0:00:16.2]} 31... Qf5 {[%clk 0:01:13.3]}
32. Qxf5 {[%clk 0:00:15.7]} 32... gxf5 {[%clk 0:01:13.9]} 33. e4 {[%clk
0:00:17.6]} 33... fxe4 {[%clk 0:01:12.9]} 34. Re3 {[%clk 0:00:13.1]} 34... exf3
{[%clk 0:01:12.7]} 35. gxf3 {[%clk 0:00:15]} 35... Bh6 {[%clk 0:01:08.7]} 36.
Rd3 {[%clk 0:00:14.4]} 36... e4 {[%clk 0:01:09.1]} 37. Rd5 {[%clk 0:00:13.4]}
37... Rxf3 {[%clk 0:01:04.2]} 38. Rxf3 {[%clk 0:00:13.1]} 38... exf3 {[%clk
0:00:59.5]} 39. Rxh5 {[%clk 0:00:09.5]} 39... Kg6 {[%clk 0:00:55.7]} 40. Rh3
{[%clk 0:00:08.8]} 40... Be3+ {[%clk 0:00:54.4]} 41. Kf1 {[%clk 0:00:09.9]}
41... Kg5 {[%clk 0:00:54.7]} 42. Rg3+ {[%clk 0:00:09.6]} 42... Kf4 {[%clk
0:00:53.7]} 43. Bb2 {[%clk 0:00:09.6]} 43... d5 {[%clk 0:00:47.6]} 44. Bg7
{[%clk 0:00:09.2]} 44... Rf7 {[%clk 0:00:46.6]} 45. Bh6+ {[%clk 0:00:09.9]}
45... Ke4 {[%clk 0:00:46.7]} 46. Rg4+ {[%clk 0:00:10.4]} 46... Kd3 {[%clk
0:00:47.2]} 47. Bg7 {[%clk 0:00:08.2]} 47... d4 {[%clk 0:00:44.5]} 48. h4 {[%clk
0:00:07.8]} 48... c5 {[%clk 0:00:43.2]} 49. h5 {[%clk 0:00:08]} 49... Rf5 {[%clk
0:00:43.1]} 50. Rh4 {[%clk 0:00:04.9]} 50... Rg5 {[%clk 0:00:43.3]} 51. Rh1
{[%clk 0:00:05]} 51... Rxg7 {[%clk 0:00:43.6]} 52. b4 {[%clk 0:00:06.2]} 52...
axb4 {[%clk 0:00:42.1]} 53. a3 {[%clk 0:00:07.4]} 53... bxa3 {[%clk 0:00:41.4]}
54. h6 {[%clk 0:00:06.1]} 54... Rh7 {[%clk 0:00:40]} 55. Rh2 {[%clk 0:00:06.6]}
55... Rxh6 {[%clk 0:00:37.2]} 56. Rxh6 {[%clk 0:00:06.3]} 56... Bxh6 {[%clk
0:00:37.6]} 57. Kf2 {[%clk 0:00:08.2]} 0-1

[Event "*** Biggest EVER Titled Tuesday"]
[Site "Chess.com"]
[Date "2018.04.17"]
[Round "9"]
[White "DiogenesSinopeus"]
[Black "Blackmind96"]
[Result "1-0"]
[WhiteElo "2437"]
[BlackElo "2504"]
[TimeControl "180+2"]
[EndTime "15:08:38 PDT"]
[Termination "DiogenesSinopeus won on time"]

1. d4 {[%clk 0:03:01.9]} 1... e6 {[%clk 0:02:58.8]} 2. e4 {[%clk 0:03:02.3]}
2... d5 {[%clk 0:03:00.7]} 3. exd5 {[%clk 0:03:04.2]} 3... exd5 {[%clk
0:03:01.8]} 4. Nf3 {[%clk 0:03:05.3]} 4... Nf6 {[%clk 0:03:02.1]} 5. Bd3 {[%clk
0:03:06.5]} 5... Bd6 {[%clk 0:03:02.9]} 6. Qe2+ {[%clk 0:03:07.9]} 6... Be7
{[%clk 0:02:59.1]} 7. O-O {[%clk 0:03:06.3]} 7... O-O {[%clk 0:02:57.4]} 8. Bg5
{[%clk 0:02:58]} 8... Bg4 {[%clk 0:02:55.8]} 9. Re1 {[%clk 0:02:53.8]} 9... Bd6
{[%clk 0:02:52.9]} 10. h3 {[%clk 0:02:41]} 10... Bxf3 {[%clk 0:02:45.6]} 11.
Qxf3 {[%clk 0:02:38.6]} 11... Nbd7 {[%clk 0:02:46.8]} 12. Nc3 {[%clk 0:02:32.6]}
12... c6 {[%clk 0:02:47.3]} 13. Ne2 {[%clk 0:02:30.7]} 13... Re8 {[%clk
0:02:42.2]} 14. Ng3 {[%clk 0:02:30.1]} 14... Qb6 {[%clk 0:02:28.7]} 15. Nf5
{[%clk 0:02:16]} 15... Bf8 {[%clk 0:02:09.2]} 16. b3 {[%clk 0:02:17.2]} 16... g6
{[%clk 0:01:53.7]} 17. Qg3 {[%clk 0:01:15.3]} 17... Qb4 {[%clk 0:01:38.3]} 18.
Rxe8 {[%clk 0:00:54.6]} 18... Rxe8 {[%clk 0:01:38.1]} 19. Qh4 {[%clk 0:00:40.8]}
19... Re1+ {[%clk 0:01:27.9]} 20. Rxe1 {[%clk 0:00:39.3]} 20... Qxe1+ {[%clk
0:01:29.8]} 21. Kh2 {[%clk 0:00:39.9]} 21... gxf5 {[%clk 0:01:22.1]} 22. Bxf6
{[%clk 0:00:25.1]} 22... Bd6+ {[%clk 0:01:19.9]} 23. Be5 {[%clk 0:00:11.2]}
23... Nxe5 {[%clk 0:00:43.5]} 24. Qd8+ {[%clk 0:00:12.4]} 24... Kg7 {[%clk
0:00:36.1]} 25. Qxd6 {[%clk 0:00:12.7]} 25... Ng6 {[%clk 0:00:28.2]} 26. Bxf5
{[%clk 0:00:12.4]} 26... Qxf2 {[%clk 0:00:27.6]} 27. Bxg6 {[%clk 0:00:13.3]}
27... hxg6 {[%clk 0:00:28.2]} 28. Qe5+ {[%clk 0:00:14.3]} 28... Kg8 {[%clk
0:00:26.2]} 29. Qe8+ {[%clk 0:00:14.5]} 29... Kh7 {[%clk 0:00:26.2]} 30. Qe7
{[%clk 0:00:05.1]} 30... Kg7 {[%clk 0:00:19.7]} 31. Qe5+ {[%clk 0:00:05.7]}
31... Kf8 {[%clk 0:00:18.6]} 32. Qb8+ {[%clk 0:00:06.3]} 32... Kg7 {[%clk
0:00:19.3]} 33. Qe5+ {[%clk 0:00:07.7]} 33... Kh7 {[%clk 0:00:15.3]} 34. Qe7
{[%clk 0:00:08.3]} 34... Qf5 {[%clk 0:00:15.7]} 35. c3 {[%clk 0:00:06.6]} 35...
Qf4+ {[%clk 0:00:15.9]} 36. Kh1 {[%clk 0:00:07.3]} 36... Qc1+ {[%clk 0:00:13.2]}
37. Kh2 {[%clk 0:00:07.7]} 37... Qf4+ {[%clk 0:00:14.8]} 38. Kh1 {[%clk
0:00:09]} 38... Kg8 {[%clk 0:00:16.3]} 39. Qe8+ {[%clk 0:00:09.4]} 39... Kh7
{[%clk 0:00:14.4]} 40. Qe7 {[%clk 0:00:11.3]} 40... g5 {[%clk 0:00:13.1]} 41.
Qxb7 {[%clk 0:00:08.5]} 41... Qc1+ {[%clk 0:00:13.1]} 42. Kh2 {[%clk 0:00:09.2]}
42... Qf4+ {[%clk 0:00:14.5]} 43. Kh1 {[%clk 0:00:10.4]} 43... Kg7 {[%clk
0:00:13.1]} 44. Qe7 {[%clk 0:00:09]} 44... Qc1+ {[%clk 0:00:13.4]} 45. Kh2
{[%clk 0:00:10.4]} 45... Qxc3 {[%clk 0:00:14.3]} 46. Qxg5+ {[%clk 0:00:10.7]}
46... Kf8 {[%clk 0:00:15.3]} 47. Qd8+ {[%clk 0:00:11.7]} 47... Kg7 {[%clk
0:00:15.8]} 48. Qg5+ {[%clk 0:00:13.6]} 48... Kf8 {[%clk 0:00:16.5]} 49. Qe5
{[%clk 0:00:14]} 49... Qc1 {[%clk 0:00:11.7]} 50. h4 {[%clk 0:00:13.9]} 50...
Kg8 {[%clk 0:00:09.5]} 51. h5 {[%clk 0:00:14.6]} 51... Kh7 {[%clk 0:00:09]} 52.
g4 {[%clk 0:00:10.7]} 1-0